bitfinex/quotes_BTCUSD_20250713
["timestamp","ask_amount","ask_price","bid_price","bid_amount"]
[1752380373458,7.22800901,117580.0,117570.0,2.52529909]
[1752380373822,7.21952247,117580.0,117570.0,2.53029909]
[1752380374024,7.21103593,117580.0,117570.0,2.53029909]
[1752380374471,7.20254939,117580.0,117570.0,2.53029909]
[1752380374873,7.19406285,117580.0,117570.0,2.53029909]
[1752380375223,7.18557631,117580.0,117570.0,2.83981909]
[1752380375565,7.17708977,117580.0,117570.0,2.83981909]
[1752380376117,7.16860323,117580.0,117570.0,2.83981909]
[1752380376566,7.16011743,117580.0,117570.0,2.83981909]
[1752380376860,7.15163163,117580.0,117570.0,2.83981909]
[1752380377227,7.14314583,117580.0,117570.0,2.53029909]
[1752380377762,7.13466003,117580.0,117570.0,2.53029909]
[1752380377904,7.12617423,117580.0,117570.0,2.53029909]
[1752380378375,7.11768843,117580.0,117570.0,2.53029909]
[1752380378746,7.10920263,117580.0,117570.0,2.53029909]
[1752380379135,7.08991249,117580.0,117570.0,2.53029909]
[1752380379624,7.08142669,117580.0,117570.0,2.53029909]
[1752380380046,7.07294089,117580.0,117570.0,2.53029909]
[1752380380447,7.06445509,117580.0,117570.0,2.53029909]
[1752380380875,7.05596929,117580.0,117570.0,2.53029909]
[1752380381250,7.04748349,117580.0,117570.0,2.53029909]
[1752380381594,7.03899769,117580.0,117570.0,2.53029909]
[1752380381972,7.03051189,117580.0,117570.0,2.53029909]
[1752380382372,7.02202609,117580.0,117570.0,2.53029909]
[1752380382893,7.01354029,117580.0,117570.0,2.53029909]
[1752380383193,7.00505459,117580.0,117570.0,2.53029909]
[1752380383744,6.99656889,117580.0,117570.0,2.53029909]
[1752380384128,6.98808319,117580.0,117570.0,2.53029909]
[1752380384478,6.97959749,117580.0,117570.0,2.53029909]
[1752380384813,6.97111179,117580.0,117570.0,2.53029909]
[1752380385205,6.97111179,117580.0,117570.0,2.83981909]
[1752380385405,6.96262609,117580.0,117570.0,2.83981909]
[1752380385683,6.95414039,117580.0,117570.0,2.83981909]
[1752380386103,6.94565469,117580.0,117570.0,2.83981909]
[1752380386533,6.93716899,117580.0,117570.0,2.83981909]
[1752380386818,6.92868329,117580.0,117570.0,2.83981909]
[1752380386962,6.92868329,117580.0,117570.0,2.73393909]
[1752380387166,6.92019759,117580.0,117570.0,2.73393909]
[1752380387574,6.91171189,117580.0,117570.0,2.73393909]
[1752380387986,6.90322619,117580.0,117570.0,2.73393909]
[1752380388389,6.89474049,117580.0,117570.0,2.50475092]
[1752380391896,6.52689065,117580.0,117570.0,3.46140883]
[1752380392106,6.52689065,117580.0,117570.0,4.446693]
[1752380392315,6.52689065,117580.0,117570.0,3.49003509]
[1752380393295,6.16726309,117580.0,117570.0,4.696693]
[1752380393511,6.15279537,117580.0,117570.0,4.696693]
[1752380393720,6.14430967,117580.0,117570.0,4.696693]
[1752380393890,6.11461247,117580.0,117570.0,4.696693]
[1752380394105,6.10612756,117580.0,117570.0,4.689693]
[1752380394352,6.10612756,117580.0,117570.0,4.698693]
[1752380394562,6.06794545,117580.0,117570.0,4.693693]
[1752380394732,6.06794545,117580.0,117570.0,5.851993]
[1752380394935,6.05946054,117580.0,117570.0,5.851993]
[1752380395152,5.65342859,117580.0,117570.0,6.161513]
[1752380395732,5.61524648,117580.0,117570.0,6.161513]
[1752380396050,5.60676157,117580.0,117570.0,6.04413]
[1752380396443,5.56857946,117580.0,117570.0,6.04413]
[1752380396845,5.56009455,117580.0,117570.0,5.84049]
[1752380397014,5.53039735,117580.0,117570.0,5.84049]
[1752380397218,5.52191244,117580.0,117570.0,5.84049]
[1752380397669,5.51342753,117580.0,117570.0,5.84049]
[1752380397875,5.48373033,117580.0,117570.0,5.84049]
[1752380398112,5.47524542,117580.0,117570.0,5.84049]
[1752380398279,5.10739558,117580.0,117570.0,5.84049]
[1752380398486,5.06921347,117580.0,117570.0,4.88383209]
[1752380398831,5.06072856,117580.0,117570.0,4.88383209]
[1752380399238,5.05224365,117580.0,117570.0,4.88383209]
[1752380399646,5.04375874,117580.0,117570.0,4.88383209]
[1752380400104,5.03527401,117580.0,117570.0,4.88383209]
[1752380400417,5.02678928,117580.0,117570.0,4.88383209]
[1752380400859,5.01830455,117580.0,117570.0,4.88383209]
[1752380401286,5.00981982,117580.0,117570.0,4.88383209]
[1752380401730,5.00133509,117580.0,117570.0,4.88383209]
[1752380401964,4.99285036,117580.0,117570.0,4.88383209]
[1752380402182,4.99285036,117580.0,117570.0,4.89233751]
[1752380402400,4.98436563,117580.0,117570.0,4.89233751]
[1752380402976,4.9758809,117580.0,117570.0,4.89233751]
[1752380403188,4.96739617,117580.0,117570.0,4.89233751]
[1752380403669,4.95891144,117580.0,117570.0,4.89233751]
[1752380404151,4.95042671,117580.0,117570.0,4.89233751]
[1752380404368,4.94194198,117580.0,117570.0,4.89233751]
[1752380404867,4.93345725,117580.0,117570.0,4.89233751]
[1752380405333,4.92497252,117580.0,117570.0,5.20181751]
[1752380405578,4.91648779,117580.0,117570.0,5.20181751]
[1752380405825,4.91648779,117580.0,117570.0,2.99640451]
[1752380406032,4.90800306,117580.0,117570.0,6.49437051]
[1752380406529,4.89951833,117580.0,117570.0,6.47916251]
[1752380406760,4.89103359,117580.0,117570.0,6.27556251]
[1752380406967,4.89103359,117580.0,117570.0,6.25597551]
[1752380407179,4.88254885,117580.0,117570.0,6.05270751]
[1752380407664,4.87406411,117580.0,117570.0,6.05270751]
[1752380407920,4.87406411,117580.0,117570.0,5.71202651]
[1752380408144,4.86557937,117580.0,117570.0,5.03262551]
[1752380408376,4.85709463,117580.0,117570.0,3.66045534]
[1752380408641,4.85709463,117580.0,117570.0,3.49690134]
[1752380408866,4.84860989,117580.0,117570.0,3.49690134]
[1752380409352,4.84012515,117580.0,117570.0,3.49690134]
[1752380409597,4.83164041,117580.0,117570.0,3.49690134]
[1752380410097,4.82315567,117580.0,117570.0,3.49690134]
[1752380410928,4.82315567,117580.0,117570.0,3.43325734]
[1752380415224,4.82315567,117580.0,117570.0,3.74273734]
[1752380421437,4.81467019,117580.0,117570.0,4.22848134]
[1752380422072,4.80618471,117580.0,117570.0,3.91626334]
[1752380422344,4.80618471,117580.0,117570.0,3.60678334]
[1752380422345,4.79769923,117580.0,117570.0,3.60678334]
[1752380422790,4.78921375,117580.0,117570.0,3.60678334]
[1752380422988,4.78072827,117580.0,117570.0,3.60678334]
[1752380423387,4.77224279,117580.0,117570.0,3.54870534]
[1752380423613,4.77224279,117580.0,117570.0,3.53596934]
[1752380423818,4.76375731,117580.0,117570.0,3.53596934]
[1752380424176,4.75527183,117580.0,117570.0,3.53596934]
[1752380424548,4.74678635,117580.0,117570.0,3.53596934]
[1752380424927,4.74678635,117580.0,117570.0,3.50696934]
[1752380425146,4.73830087,117580.0,117570.0,3.47657634]
[1752380425413,4.73830087,117580.0,117570.0,3.78605634]
[1752380425694,4.72981539,117580.0,117570.0,3.78605634]
[1752380425924,4.72132991,117580.0,117570.0,3.78605634]
[1752380426425,4.71284443,117580.0,117570.0,3.78605634]
[1752380426686,4.70631895,117580.0,117570.0,3.29714634]
[1752380426841,4.70631895,117580.0,117570.0,2.34877003]
[1752380426842,4.74737895,117580.0,117570.0,2.34877003]
[1752380427311,4.74737895,117580.0,117570.0,2.34026461]
[1752380427716,4.74737895,117580.0,117570.0,2.28422944]
[1752380427917,4.74737895,117580.0,117570.0,2.3657808]
[1752380428199,4.74737895,117580.0,117570.0,1.6681808]
[1752380428697,4.74737895,117580.0,117570.0,1.65117018]
[1752380428846,4.74737895,117580.0,117570.0,1.60117029]
[1752380429046,4.74737895,117580.0,117570.0,1.65117018]
[1752380430417,4.74737895,117580.0,117570.0,1.60117029]
[1752380430640,4.74737895,117580.0,117570.0,1.65117018]
[1752380432425,4.74737895,117580.0,117570.0,1.64266461]
[1752380433213,4.74737895,117580.0,117570.0,1.6596748]
[1752380433563,4.74737895,117580.0,117570.0,1.66818]
[1752380435123,4.74737895,117580.0,117570.0,2.09294597]
[1752380435352,4.74737895,117580.0,117570.0,2.29658597]
[1752380435583,4.72757895,117580.0,117570.0,2.29658597]
[1752380435746,4.72757895,117580.0,117570.0,1.9777]
[1752380435965,4.70947895,117580.0,117570.0,1.9777]
[1752380436160,4.70947895,117580.0,117570.0,2.29658597]
[1752380438737,4.70947895,117580.0,117570.0,2.19070597]
[1752380440715,4.70947895,117580.0,117570.0,1.98706597]
[1752380445192,4.70947895,117580.0,117570.0,2.29658597]
[1752380448175,4.70631895,117580.0,117570.0,2.29658597]
[1752380449251,4.70631895,117580.0,117570.0,2.19070597]
[1752380451199,4.70631895,117580.0,117570.0,1.98706597]
[1752380451767,4.70950895,117580.0,117570.0,1.98706597]
[1752380454164,4.72990895,117580.0,117570.0,1.98706597]
[1752380454287,4.74990895,117580.0,117570.0,1.98706597]
[1752380454671,4.74990895,117580.0,117570.0,1.96155058]
[1752380455176,4.74990895,117580.0,117570.0,2.27107058]
[1752380456195,4.74990895,117580.0,117570.0,2.28808092]
[1752380457458,4.70950895,117580.0,117570.0,2.28808092]
[1752380460358,4.70631895,117580.0,117570.0,2.28808092]
[1752380460709,4.70631895,117580.0,117570.0,2.29019092]
[1752380460964,4.70631895,117580.0,117570.0,1.98067092]
[1752380461190,4.70631895,117580.0,117570.0,2.00230092]
[1752380461335,4.70631895,117580.0,117570.0,2.02150092]
[1752380462391,4.70631895,117580.0,117570.0,2.00230092]
[1752380462718,4.70631895,117580.0,117570.0,1.98067092]
[1752380463123,4.70631895,117580.0,117570.0,1.99907092]
[1752380463324,4.70631895,117580.0,117570.0,2.00230092]
[1752380463479,4.70631895,117580.0,117570.0,2.02150092]
[1752380464276,4.70435895,117580.0,117570.0,2.02150092]
[1752380464475,4.70435895,117580.0,117570.0,2.04704909]
[1752380465254,4.70435895,117580.0,117570.0,2.33102092]
[1752380467965,4.70435895,117580.0,117570.0,2.35656909]
[1752380469213,4.70435895,117580.0,117570.0,2.25068909]
[1752380469808,4.6958731,117580.0,117570.0,4.07376109]
[1752380470153,4.68738725,117580.0,117570.0,3.99885509]
[1752380470440,4.68738725,117580.0,117570.0,3.66843009]
[1752380470635,4.6789014,117580.0,117570.0,3.39279009]
[1752380470856,4.6789014,117580.0,117570.0,3.10946992]
[1752380471071,4.67041555,117580.0,117570.0,3.10946992]
[1752380471372,4.6619297,117580.0,117570.0,3.10946992]
[1752380471788,4.65344385,117580.0,117570.0,3.10946992]
[1752380472141,4.644958,117580.0,117570.0,3.10946992]
[1752380472501,4.63647215,117580.0,117570.0,3.10946992]
[1752380472928,4.6279863,117580.0,117570.0,3.10946992]
[1752380475267,4.6279863,117580.0,117570.0,3.41898992]
[1752380475477,4.6279863,117580.0,117570.0,3.91298992]
[1752380475882,4.6279863,117580.0,117570.0,3.91961092]
[1752380476604,4.61950045,117580.0,117570.0,3.91961092]
[1752380476950,4.6110146,117580.0,117570.0,3.91961092]
[1752380477152,4.6110146,117580.0,117570.0,3.58820592]
[1752380477384,4.60252875,117580.0,117570.0,3.57214892]
[1752380477768,4.5940429,117580.0,117570.0,3.46626892]
[1752380477974,4.5940429,117580.0,117570.0,4.42292683]
[1752380478180,4.58555705,117580.0,117570.0,3.49181709]
[1752380478733,4.5770712,117580.0,117570.0,3.28817709]
[1752380479138,4.56528117,117580.0,117570.0,3.28817709]
[1752380479621,4.55679532,117580.0,117570.0,3.28817709]
[1752380479772,4.54830947,117580.0,117570.0,3.28817709]
[1752380480267,4.53982362,117580.0,117570.0,3.28817709]
[1752380480630,4.53133777,117580.0,117570.0,3.28817709]
[1752380481033,4.52285192,117580.0,117570.0,3.28817709]
[1752380481376,4.46047081,117580.0,117570.0,3.28817709]
[1752380481581,4.4137992,117580.0,117570.0,3.28817709]
[1752380482078,4.37561771,117580.0,117570.0,3.28817709]
[1752380482258,4.36713294,117580.0,117570.0,3.28817709]
[1752380482694,4.32895145,117580.0,117570.0,3.28817709]
[1752380483107,4.32046668,117580.0,117570.0,3.28817709]
[1752380483459,4.28228519,117580.0,117570.0,3.28817709]
[1752380483687,4.28228519,117580.0,117570.0,4.244835]
[1752380483883,4.27380042,117580.0,117570.0,4.244835]
[1752380484253,4.26531565,117580.0,117570.0,4.244835]
[1752380484668,4.25683088,117580.0,117570.0,4.244835]
[1752380484869,4.25683088,117580.0,117570.0,6.963208]
[1752380485067,4.24834611,117580.0,117570.0,6.905633]
[1752380485274,3.84102581,117580.0,117570.0,7.215113]
[1752380485493,3.56959301,117580.0,117570.0,7.215113]
[1752380485994,3.56110824,117580.0,117570.0,8.538652]
[1752380486232,3.55262347,117580.0,117570.0,8.538652]
[1752380486659,3.5441387,117580.0,117570.0,8.538652]
[1752380486978,3.53565393,117580.0,117570.0,8.869805]
[1752380487243,3.24025393,117580.0,117570.0,8.869805]
[1752380487464,3.23176916,117580.0,117570.0,8.851539]
[1752380487671,3.23176916,117580.0,117570.0,8.647939]
[1752380487871,3.22328439,117580.0,117570.0,8.111757]
[1752380488080,2.85543455,117580.0,117570.0,8.747707]
[1752380488230,2.84694987,117580.0,117570.0,8.747707]
[1752380488435,2.84694987,117580.0,117570.0,7.61352609]
[1752380488638,2.83846519,117580.0,117570.0,7.61352609]
[1752380489040,2.82998051,117580.0,117570.0,7.62501109]
[1752380489597,2.82149583,117580.0,117570.0,7.62501109]
[1752380489896,2.81301115,117580.0,117570.0,7.62501109]
[1752380490081,2.81301115,117580.0,117570.0,7.79104909]
[1752380490322,2.80452647,117580.0,117570.0,7.79104909]
[1752380490604,2.79604179,117580.0,117570.0,7.79104909]
[1752380490814,2.79604179,117580.0,117570.0,7.65893809]
[1752380491025,2.78755711,117580.0,117570.0,2.79104909]
[1752380491244,2.78755711,117580.0,117570.0,7.65893709]
[1752380491441,2.77907243,117580.0,117570.0,7.65893709]
[1752380491869,2.77058775,117580.0,117570.0,7.65893709]
[1752380492047,2.77058775,117580.0,117570.0,7.65393709]
[1752380492269,2.76210307,117580.0,117570.0,7.65393709]
[1752380492573,2.75361839,117580.0,117570.0,7.65393709]
[1752380492872,2.75361839,117580.0,117570.0,7.53137609]
[1752380493085,2.74513371,117580.0,117570.0,7.53137609]
[1752380493282,2.74513371,117580.0,117570.0,7.53820309]
[1752380493484,2.73664903,117580.0,117570.0,7.53820309]
[1752380493965,2.72816435,117580.0,117570.0,2.79104909]
[1752380494178,2.71967967,117580.0,117570.0,6.68886909]
[1752380494597,2.71119499,117580.0,117570.0,6.68886909]
[1752380495013,2.70271031,117580.0,117570.0,6.68886909]
[1752380495335,2.70271031,117580.0,117570.0,7.11953409]
[1752380495540,2.69422563,117580.0,117570.0,7.11953409]
[1752380495746,2.68574095,117580.0,117570.0,7.11953409]
[1752380496082,2.67725627,117580.0,117570.0,3.10052909]
[1752380496287,2.67725627,117580.0,117570.0,4.33013092]
[1752380496488,2.66877159,117580.0,117570.0,4.33013092]
[1752380496694,2.66877159,117580.0,117570.0,4.22425092]
[1752380496993,2.66028691,117580.0,117570.0,4.22425092]
[1752380497162,2.66028691,117580.0,117570.0,5.31234992]
[1752380497382,2.65180223,117580.0,117570.0,5.10874992]
[1752380497762,2.64331755,117580.0,117570.0,5.10874992]
[1752380498164,2.64331755,117580.0,117570.0,5.40421692]
[1752380498967,2.64331755,117580.0,117570.0,5.24831092]
[1752380499163,2.64331755,117580.0,117570.0,2.76550092]
[1752380499313,2.64331755,117580.0,117570.0,5.19308392]
[1752380500202,2.64331755,117580.0,117570.0,2.76550092]
[1752380500361,2.64331755,117580.0,117570.0,6.74221109]
[1752380500922,2.64331755,117580.0,117570.0,6.71666292]
[1752380501140,2.64331755,117580.0,117570.0,6.74221109]
[1752380501364,2.64331755,117580.0,117570.0,6.45018692]
[1752380501579,2.64331755,117580.0,117570.0,6.27444892]
[1752380501786,2.64331755,117580.0,117570.0,6.23374892]
[1752380502003,2.64331755,117580.0,117570.0,5.99744992]
[1752380502207,2.64331755,117580.0,117570.0,5.95123592]
[1752380502430,2.64331755,117580.0,117570.0,5.67724992]
[1752380502659,2.64331755,117580.0,117570.0,4.88572892]
[1752380503286,2.64331755,117580.0,117570.0,5.09277692]
[1752380503533,2.64331755,117580.0,117570.0,5.07819792]
[1752380504415,2.64540755,117580.0,117570.0,4.29955692]
[1752380504668,2.64540755,117580.0,117570.0,4.19061692]
[1752380504887,2.68556755,117580.0,117570.0,1.57816387]
[1752380505113,2.68556755,117580.0,117570.0,1.62816376]
[1752380505371,2.68556755,117580.0,117570.0,1.93764376]
[1752380505588,2.68556755,117580.0,117570.0,1.88764387]
[1752380505815,2.68556755,117580.0,117570.0,1.95218461]
[1752380506042,2.68556755,117580.0,117570.0,1.96919552]
[1752380506268,2.68556755,117580.0,117570.0,1.92770098]
[1752380506517,2.68556755,117580.0,117570.0,1.99471135]
[1752380506760,2.68556755,117580.0,117570.0,1.98620586]
[1752380506979,2.68556755,117580.0,117570.0,1.88032586]
[1752380507202,2.68556755,117580.0,117570.0,1.70224597]
[1752380507413,2.68556755,117580.0,117570.0,1.88032586]
[1752380508007,2.68556755,117580.0,117570.0,1.58492586]
[1752380508219,2.68556755,117580.0,117570.0,1.57642044]
[1752380509219,2.68556755,117580.0,117570.0,1.37282044]
[1752380513949,2.68556755,117580.0,117570.0,1.66822044]
[1752380515190,2.68556755,117580.0,117570.0,1.97770044]
[1752380518312,2.68556755,117580.0,117570.0,1.87182044]
[1752380518516,2.64540755,117580.0,117570.0,2.21823451]
[1752380518733,2.64540755,117580.0,117570.0,2.22139451]
[1752380518934,2.63692126,117580.0,117570.0,2.01779451]
[1752380519375,2.62843497,117580.0,117570.0,2.01779451]
[1752380519588,2.62843497,117580.0,117570.0,2.01463451]
[1752380519731,2.61994868,117580.0,117570.0,2.01463451]
[1752380520118,2.60937239,117580.0,117570.0,2.01779451]
[1752380520505,2.6029761,117580.0,117570.0,2.01779451]
[1752380520925,2.59448981,117580.0,117570.0,2.01779451]
[1752380521336,2.58600352,117580.0,117570.0,2.01779451]
[1752380521705,2.57751723,117580.0,117570.0,1.98908641]
[1752380522109,2.56903094,117580.0,117570.0,1.98908641]
[1752380522524,2.56054493,117580.0,117570.0,1.98908641]
[1752380522924,2.55205892,117580.0,117570.0,1.98908641]
[1752380523355,2.54357291,117580.0,117570.0,1.98908641]
[1752380523649,2.5350869,117580.0,117570.0,1.98908641]
[1752380524034,2.52660089,117580.0,117570.0,1.98908641]
[1752380524452,2.51811488,117580.0,117570.0,1.98908641]
[1752380524854,2.50962887,117580.0,117570.0,1.98908641]
[1752380525214,2.50114286,117580.0,117570.0,2.29860641]
[1752380525655,2.49265685,117580.0,117570.0,2.29860641]
[1752380526148,2.48417084,117580.0,117570.0,2.19272641]
[1752380526447,2.47568483,117580.0,117570.0,2.19272641]
[1752380526806,2.46719882,117580.0,117570.0,2.19272641]
[1752380527210,2.45871281,117580.0,117570.0,2.19272641]
[1752380527582,2.4502268,117580.0,117570.0,1.98908641]
[1752380528057,2.44174079,117580.0,117570.0,1.98908641]
[1752380528474,2.43325478,117580.0,117570.0,1.99210641]
[1752380528834,2.42476927,117580.0,117570.0,1.99210641]
[1752380529037,2.42267927,117580.0,117570.0,2.04060641]
[1752380529343,2.41419376,117580.0,117570.0,2.06615451]
[1752380529752,2.40570825,117580.0,117570.0,2.06615451]
[1752380530177,2.39722274,117580.0,117570.0,2.06615451]
[1752380530498,2.38873723,117580.0,117570.0,2.06615451]
[1752380530917,2.38025172,117580.0,117570.0,2.06615451]
[1752380531322,2.37176621,117580.0,117570.0,2.06615451]
[1752380531793,2.3653307,117580.0,117570.0,2.06615451]
[1752380532034,2.35684519,117580.0,117570.0,2.04225451]
[1752380532462,2.34835968,117580.0,117570.0,2.04225451]
[1752380532879,2.33987417,117580.0,117570.0,2.04225451]
[1752380533292,2.33138866,117580.0,117570.0,2.04225451]
[1752380533577,2.32290315,117580.0,117570.0,2.04225451]
[1752380533783,2.32290315,117580.0,117570.0,1.98908641]
[1752380533989,2.31441764,117580.0,117570.0,1.98710641]
[1752380534401,2.30593195,117580.0,117570.0,1.98710641]
[1752380534849,2.30063626,117580.0,117570.0,1.98710641]
[1752380535072,2.34883626,117580.0,117570.0,1.98710641]
[1752380535275,2.34035057,117580.0,117570.0,2.29662641]
[1752380535652,2.33186488,117580.0,117570.0,2.29662641]
[1752380536099,2.32337919,117580.0,117570.0,2.19074641]
[1752380536394,2.3148935,117580.0,117570.0,2.19074641]
[1752380536949,2.30640781,117580.0,117570.0,2.19074641]
[1752380537345,2.29792212,117580.0,117570.0,1.98710641]
[1752380537778,2.28943643,117580.0,117570.0,1.98710641]
[1752380538514,2.24123643,117580.0,117570.0,1.98710641]
[1752380542163,2.20305094,117580.0,117570.0,1.98710641]
[1752380542587,2.19456528,117580.0,117570.0,1.98710641]
[1752380542920,2.15637979,117580.0,117570.0,1.98710641]
[1752380543334,2.1181943,117580.0,117570.0,1.98710641]
[1752380543806,2.10970864,117580.0,117570.0,1.98710641]
[1752380544045,2.08000881,117580.0,117570.0,1.98710641]
[1752380544251,2.07152315,117580.0,117570.0,1.98710641]
[1752380544454,2.06303749,117580.0,117570.0,1.98710641]
[1752380545026,2.05455183,117580.0,117570.0,1.98710641]
[1752380545235,2.04606617,117580.0,117570.0,2.29662641]
[1752380545587,2.00788068,117580.0,117570.0,2.29662641]
[1752380546023,1.99939502,117580.0,117570.0,2.29662641]
[1752380546190,1.96969519,117580.0,117570.0,2.29662641]
[1752380546386,1.96120953,117580.0,117570.0,2.29662641]
[1752380546626,1.96120953,117580.0,117570.0,2.19074641]
[1752380546791,1.92302404,117580.0,117570.0,2.19074641]
[1752380547270,1.91453842,117580.0,117570.0,2.19074641]
[1752380547765,1.9060528,117580.0,117570.0,2.19074641]
[1752380548070,1.89756718,117580.0,117570.0,1.98710641]
[1752380548499,1.88908156,117580.0,117570.0,1.98710641]
[1752380548843,1.88059594,117580.0,117570.0,1.98710641]
[1752380549429,1.87211032,117580.0,117570.0,1.98710641]
[1752380549629,1.8636247,117580.0,117570.0,1.98710641]
[1752380550051,1.85513908,117580.0,117570.0,1.98710641]
[1752380550432,1.84665346,117580.0,117570.0,1.98710641]
[1752380550881,1.83816784,117580.0,117570.0,1.98710641]
[1752380551299,1.82968222,117580.0,117570.0,1.98710641]
[1752380551656,1.8211966,117580.0,117570.0,1.98710641]
[1752380552155,1.81271098,117580.0,117570.0,1.98710641]
[1752380552449,1.80422536,117580.0,117570.0,1.98710641]
[1752380552932,1.79573974,117580.0,117570.0,1.98710641]
[1752380553345,1.78725412,117580.0,117570.0,1.98710641]
[1752380553665,1.7787685,117580.0,117570.0,1.98710641]
[1752380554023,1.77028288,117580.0,117570.0,1.98710641]
[1752380554447,1.76179726,117580.0,117570.0,1.98710641]
[1752380554984,1.75331164,117580.0,117570.0,1.98710641]
[1752380555188,1.75331164,117580.0,117570.0,2.29662641]
[1752380555492,1.74482602,117580.0,117570.0,2.29662641]
[1752380556811,1.74163602,117580.0,117570.0,2.29662641]
[1752380559212,1.74163602,117580.0,117570.0,2.19074641]
[1752380563186,1.74163602,117580.0,117570.0,1.98710641]
[1752380564084,1.74163602,117580.0,117570.0,1.98921641]
[1752380565165,1.74163602,117580.0,117570.0,2.29873641]
[1752380566740,1.74163602,117580.0,117570.0,2.30176641]
[1752380567023,1.74163602,117580.0,117570.0,2.31027147]
[1752380567348,1.74163602,117580.0,117570.0,2.3187766]
[1752380567549,1.74163602,117580.0,117570.0,2.2384447]
[1752380568040,1.74163602,117580.0,117570.0,2.2633447]
[1752380569546,1.74163602,117580.0,117570.0,2.0597047]
[1752380572586,1.73958602,117580.0,117570.0,2.0597047]
[1752380575118,1.74154602,117580.0,117570.0,2.0348047]
[1752380575319,1.74154602,117580.0,117570.0,2.3443247]
[1752380577471,1.73958602,117580.0,117570.0,2.3712247]
[1752380577875,1.73958602,117580.0,117570.0,2.4001247]
[1752380578763,1.73110003,117580.0,117570.0,2.3712247]
[1752380579221,1.72261404,117580.0,117570.0,2.2653447]
[1752380579560,1.71412805,117580.0,117570.0,2.2653447]
[1752380580032,1.70564206,117580.0,117570.0,2.2653447]
[1752380580237,1.70564206,117580.0,117570.0,2.0617047]
[1752380580475,1.69715607,117580.0,117570.0,2.0885047]
[1752380580939,1.65896909,117580.0,117570.0,3.7572257]
[1752380581148,1.65896909,117580.0,117570.0,5.1529837]
[1752380581368,1.6504831,117580.0,117570.0,5.1529837]
[1752380581570,1.62078211,117580.0,117570.0,5.1529837]
[1752380581773,1.61229612,117580.0,117570.0,5.1529837]
[1752380582205,1.57410914,117580.0,117570.0,6.3861647]
[1752380582411,1.56562315,117580.0,117570.0,6.3861647]
[1752380582819,1.52743617,117580.0,117570.0,5.4263417]
[1752380583028,1.52743617,117580.0,117570.0,5.1775407]
[1752380583234,1.51895018,117580.0,117570.0,2.3385047]
[1752380583434,1.48924919,117580.0,117570.0,5.2329017]
[1752380583715,1.48076479,117580.0,117570.0,5.2329017]
[1752380584165,1.44258499,117580.0,117570.0,6.5232417]
[1752380584650,1.43410059,117580.0,117570.0,6.5232417]
[1752380584805,1.39592079,117580.0,117570.0,6.5232417]
[1752380585214,1.38743639,117580.0,117570.0,7.0498827]
[1752380585416,1.35774099,117580.0,117570.0,7.0498827]
[1752380585638,1.34925659,117580.0,117570.0,7.0498827]
[1752380586170,1.31107679,117580.0,117570.0,6.9440027]
[1752380586361,1.30259239,117580.0,117570.0,6.7740027]
[1752380586854,1.26441259,117580.0,117570.0,6.5703627]
[1752380587097,0.89656275,117580.0,117570.0,7.52702061]
[1752380587415,0.85838295,117580.0,117570.0,8.29516261]
[1752380587584,0.84989855,117580.0,117570.0,7.1967217]
[1752380587938,0.81171875,117580.0,117570.0,6.9190047]
[1752380588138,0.81171875,117580.0,117570.0,6.8337337]
[1752380588356,0.80323435,117580.0,117570.0,6.5847647]
[1752380588594,0.77353895,117580.0,117570.0,6.5847647]
[1752380588795,0.76505455,117580.0,117570.0,6.5847647]
[1752380589290,0.72687528,117580.0,117570.0,2.3385047]
[1752380589511,0.72687528,117580.0,117570.0,6.5745667]
[1752380589723,0.718391,117580.0,117570.0,6.5745667]
[1752380589958,0.68869601,117580.0,117570.0,6.5745667]
[1752380590098,0.68021173,117580.0,117570.0,6.5745667]
[1752380590309,0.67172745,117580.0,117570.0,6.8316967]
[1752380590637,0.64203246,117580.0,117570.0,6.8316967]
[1752380590786,0.63354818,117580.0,117570.0,7.3256967]
[1752380591179,0.59536891,117580.0,117570.0,7.0072997]
[1752380591376,0.59536891,117580.0,117570.0,7.0459827]
[1752380591607,0.58688463,117580.0,117570.0,7.0459827]
[1752380591807,0.55718964,117580.0,117570.0,7.0099827]
[1752380592008,0.54870536,117580.0,117570.0,6.8368667]
[1752380592224,0.54870536,117580.0,117570.0,6.6823817]
[1752380592427,0.54022108,117580.0,117570.0,6.6823817]
[1752380592633,0.51052609,117580.0,117570.0,6.5472767]
[1752380592850,0.50204181,117580.0,117570.0,6.5472767]
[1752380593067,0.50204181,117580.0,117570.0,6.5099827]
[1752380593229,0.46386254,117580.0,117570.0,6.5099827]
[1752380593434,0.46386254,117580.0,117570.0,6.6374807]
[1752380593636,0.45537826,117580.0,117570.0,6.6374807]
[1752380593843,0.42568327,117580.0,117570.0,6.6374807]
[1752380594051,0.41719899,117580.0,117570.0,6.6374807]
[1752380594622,0.40871458,117580.0,117570.0,6.7727417]
[1752380594824,0.40023017,117580.0,117570.0,6.7727417]
[1752380595234,0.39174576,117580.0,117570.0,7.0822217]
[1752380595513,0.38326135,117580.0,117570.0,7.4178747]
[1752380595693,0.38326135,117580.0,117570.0,7.1715447]
[1752380595928,0.37477694,117580.0,117570.0,7.1715447]
[1752380596345,0.36629253,117580.0,117570.0,7.1715447]
[1752380596569,0.36629253,117580.0,117570.0,7.4440567]
[1752380596727,0.35780812,117580.0,117570.0,7.4440567]
[1752380596937,0.35780812,117580.0,117570.0,7.3469567]
[1752380597207,0.34932371,117580.0,117570.0,6.6434997]
[1752380597631,0.3408393,117580.0,117570.0,7.0041917]
[1752380597761,0.3408393,117580.0,117570.0,6.8720857]
[1752380597959,0.33235489,117580.0,117570.0,6.8720857]
[1752380598192,0.33235489,117580.0,117570.0,6.3321267]
[1752380598394,0.32387048,117580.0,117570.0,6.3321267]
[1752380598588,0.32387048,117580.0,117570.0,2.8325047]
[1752380598794,0.31538607,117580.0,117570.0,6.4054417]
[1752380599088,0.30690166,117580.0,117570.0,6.4054417]
[1752380599494,0.29841725,117580.0,117570.0,6.4054417]
[1752380599725,0.29841725,117580.0,117570.0,6.4181727]
[1752380599901,0.28993253,117580.0,117570.0,6.3905727]
[1752380600319,0.28144781,117580.0,117570.0,6.3905727]
[1752380600780,0.27296309,117580.0,117570.0,7.3109597]
[1752380601800,0.27296309,117580.0,117570.0,2.8325047]
[1752380602000,0.27296309,117580.0,117570.0,7.2555487]
[1752380602230,0.27296309,117580.0,117570.0,7.2154157]
[1752380602821,0.27296309,117580.0,117570.0,7.3165627]
[1752380603035,0.27296309,117580.0,117570.0,7.2587587]
[1752380603896,0.27296309,117580.0,117570.0,7.4143827]
[1752380604024,0.27296309,117580.0,117570.0,7.3816217]
[1752380604230,0.27296309,117580.0,117570.0,7.3659667]
[1752380604451,0.27296309,117580.0,117570.0,7.2857267]
[1752380604874,0.27296309,117580.0,117570.0,6.6665927]
[1752380605304,0.27296309,117580.0,117570.0,6.9760727]
[1752380605505,0.27296309,117580.0,117570.0,6.8136967]
[1752380605843,0.27296309,117580.0,117570.0,6.7206727]
[1752380607079,0.27296309,117580.0,117570.0,3.1419847]
[1752380607311,0.27296309,117580.0,117570.0,6.7206727]
[1752380607924,0.27296309,117580.0,117570.0,6.7203947]
[1752380608980,0.27296309,117580.0,117570.0,3.1419847]